bitfinex-derivatives/quotes_BTCF0:USTF0_20241120
["timestamp","ask_amount","ask_price","bid_price","bid_amount"]
[1732144598382,0.10691247,94016.0,94015.0,0.421089]
[1732144598579,0.10791247,94016.0,94015.0,0.420089]
[1732144598882,0.10791247,94016.0,94015.0,0.80226781]
[1732144599078,0.10691247,94016.0,94015.0,0.42008019]
[1732144599274,0.10591247,94016.0,94015.0,0.42108019]
[1732144601088,0.10591247,94016.0,94015.0,0.36794319]
[1732144601981,0.10591247,94016.0,94015.0,0.68644121]
[1732144602179,0.10591247,94016.0,94015.0,0.37856665]
[1732144602878,0.10791247,94016.0,94015.0,0.37756665]
[1732144603490,0.10791247,94016.0,94015.0,0.05909937]
[1732144603679,0.10791247,94016.0,94015.0,0.37756665]
[1732144603880,0.10791247,94016.0,94015.0,0.05909937]
[1732144604686,0.12916648,94016.0,94015.0,0.05909937]
[1732144607391,0.12816648,94016.0,94015.0,0.05909937]
[1732144607584,0.12916648,94016.0,94015.0,0.05909937]
[1732144611194,0.12916648,94016.0,94008.0,0.31218679]
[1732144611392,0.053145,94002.0,94001.0,0.3608]
[1732144611700,0.51521165,94002.0,94001.0,0.36506434]
[1732144611898,0.51521165,94002.0,94000.0,0.0344]
[1732144612101,0.114945,94001.0,94000.0,0.0344]
[1732144612598,0.114945,94001.0,93989.0,0.0001137]
[1732144612599,0.053146,94000.0,93999.0,0.19094559]
[1732144612793,0.10126665,94000.0,93999.0,0.19094559]
[1732144612988,0.053149,93994.0,93993.0,0.25474777]
[1732144613187,0.47068,93994.0,93991.0,0.25474777]
[1732144613394,0.05315,93992.0,93991.0,0.25474777]
[1732144613591,0.05315,93992.0,93989.0,0.0001137]
[1732144613795,0.053151,93990.0,93989.0,0.0001137]
[1732144614499,0.053151,93990.0,93989.0,0.25446645]
[1732144615102,0.054151,93990.0,93989.0,0.0011137]
[1732144615915,0.054151,93990.0,93989.0,0.0031137]
[1732144616087,0.15541765,93990.0,93989.0,0.0031137]
[1732144616491,0.15641765,93990.0,93989.0,0.0031137]
[1732144616893,0.374351,93990.0,93989.0,0.0031137]
[1732144618302,0.525831,93990.0,93989.0,0.0031137]
[1732144620187,0.54709498,93990.0,93989.0,0.0031137]
[1732144621201,0.43721498,93990.0,93989.0,0.0031137]
[1732144621390,0.415951,93990.0,93989.0,0.0562657]
[1732144621590,0.002,93990.0,93989.0,0.0562657]
[1732144623009,0.02135418,94001.0,94000.0,0.053146]
[1732144623302,9.749e-05,94001.0,94000.0,0.053146]
[1732144623493,9.749e-05,94001.0,94000.0,0.11216142]
[1732144623799,9.749e-05,94001.0,94000.0,0.3660442]
[1732144624004,0.05299696,94001.0,94000.0,0.3660442]
[1732144624295,0.05424249,94001.0,94000.0,0.3690442]
[1732144624696,0.00109749,94001.0,94000.0,0.3690442]
[1732144624902,0.053143,94005.0,94004.0,0.053144]
[1732144625203,0.053143,94005.0,94004.0,0.11216959]
[1732144625407,0.053141,94009.0,94008.0,0.053139]
[1732144625703,0.053141,94008.0,94007.0,0.19044229]
[1732144625887,0.41442059,94015.0,94000.0,0.003]
[1732144626090,0.01002541,94014.0,94013.0,0.053138]
[1732144626301,0.05362059,94015.0,94014.0,0.053138]
[1732144626489,0.10675759,94015.0,94014.0,0.36607985]
[1732144626690,0.053137,94015.0,94014.0,0.36607985]
[1732144626890,0.053134,94021.0,94020.0,0.053133]
[1732144628500,0.054134,94021.0,94020.0,0.053133]
[1732144628691,0.001,94021.0,94020.0,0.053133]
[1732144628898,0.00088001,94026.0,94025.0,0.053132]
[1732144629097,0.053129,94031.0,94030.0,0.053129]
[1732144629606,0.10541027,94031.0,94030.0,1.553129]
[1732144629997,0.12666247,94031.0,94030.0,1.553129]
[1732144630194,0.0743812,94031.0,94030.0,0.053129]
[1732144630800,0.00159582,94035.0,94034.0,0.053127]
[1732144631503,0.05472182,94035.0,94034.0,0.053127]
[1732144632003,0.05472182,94035.0,94029.0,0.0333]
[1732144632202,0.10126665,94032.0,94029.0,0.0333]
[1732144632700,0.10126665,94032.0,94021.0,0.25381269]
[1732144633003,0.10126665,94022.0,94018.0,0.03386]
[1732144633205,0.15439965,94022.0,94018.0,0.0333]
[1732144633398,0.10126665,94022.0,94018.0,0.0333]
[1732144633700,0.053134,94021.0,94018.0,0.0333]
[1732144634494,0.10226665,94022.0,94018.0,0.0373]
[1732144634695,0.053135,94019.0,94018.0,0.0393]
[1732144635995,0.05300413,94022.0,94018.0,0.0393]
[1732144636201,0.001,94022.0,94018.0,0.0393]
[1732144636499,0.001,94022.0,94019.0,0.05898441]
[1732144636696,0.053132,94025.0,94018.0,0.0333]
[1732144637005,0.001,94021.0,94018.0,0.0333]
[1732144637702,0.001,94022.0,94018.0,0.0333]
[1732144638295,0.053135,94019.0,94018.0,0.0333]
[1732144638494,0.053138,94014.0,94013.0,0.0333]
[1732144639699,0.053145,94001.0,94000.0,0.25881269]
[1732144639896,0.15441165,94001.0,94000.0,0.05897411]
[1732144640095,0.15441165,94001.0,93996.0,0.0305]
[1732144640096,0.053148,93997.0,93996.0,0.0305]
[1732144641500,0.053148,93997.0,93996.0,0.003]
[1732144641696,0.054148,93997.0,93996.0,0.007]
[1732144642014,0.0647997,93997.0,93996.0,0.007]
[1732144642202,0.11705865,93997.0,93996.0,0.007]
[1732144643412,0.13400923,93997.0,93996.0,0.007]
[1732144643811,0.10640695,93997.0,93996.0,0.007]
[1732144644006,0.13394867,93997.0,93996.0,0.007]
[1732144644409,0.13388597,93997.0,93996.0,0.007]
[1732144644607,0.11693721,93997.0,93996.0,0.007]
[1732144646301,0.11693721,93997.0,93996.0,0.00387427]
[1732144646503,0.11693721,93997.0,93989.0,0.0001137]
[1732144646711,0.51521765,93990.0,93989.0,0.0001137]
[1732144646905,0.52574791,93990.0,93989.0,0.0001137]
[1732144647307,0.84494791,93990.0,93989.0,7e-07]
[1732144648321,0.8450801,93990.0,93989.0,7e-07]
[1732144648819,0.74481345,93990.0,93989.0,7e-07]
[1732144649414,0.84989345,93990.0,93989.0,7e-07]
[1732144650703,0.85089345,93990.0,93989.0,7e-07]
[1732144651312,0.53169345,93990.0,93989.0,7e-07]
[1732144651813,0.53069345,93990.0,93989.0,7e-07]
[1732144652116,0.53169345,93990.0,93989.0,7e-07]
[1732144652413,0.42661345,93990.0,93989.0,7e-07]
[1732144652714,0.053164,93967.0,93966.0,0.0307]
[1732144652920,0.413964,93967.0,93966.0,0.0307]
[1732144653917,0.42393095,93967.0,93966.0,0.0307]
[1732144654310,0.42392966,93967.0,93966.0,0.0307]
[1732144654508,0.413964,93967.0,93966.0,0.0307]
[1732144654812,0.414964,93967.0,93966.0,0.0307]
[1732144655113,0.415964,93967.0,93966.0,0.0307]
[1732144655620,0.46895935,93967.0,93966.0,0.0307]
[1732144659211,0.46895935,93967.0,93956.0,0.083371]
[1732144659212,0.05317,93957.0,93956.0,0.0302]
[1732144660222,0.3618,93967.0,93966.0,0.053165]
[1732144660519,0.053162,93971.0,93960.0,0.10126665]
[1732144660710,0.053162,93971.0,93970.0,0.053163]
[1732144661306,0.053161,93975.0,93974.0,0.053159]
[1732144661518,0.3608,93979.0,93974.0,0.053159]
[1732144661823,0.00159677,93986.0,93985.0,0.053154]
[1732144662126,0.05315,93993.0,93989.0,0.053152]
[1732144662418,0.05315,93994.0,93989.0,0.053152]
[1732144662716,0.053151,93992.0,93989.0,0.053152]
[1732144663808,0.00997,93991.0,93989.0,0.053152]
[1732144664009,0.053151,93992.0,93989.0,0.053152]
[1732144664321,0.053147,93999.0,93998.0,0.053147]
[1732144664917,0.053151,93994.0,93993.0,0.05315]
[1732144665314,0.10126665,93994.0,93988.0,0.053152]
[1732144665531,0.001,93990.0,93988.0,0.053152]
[1732144665916,0.053152,93989.0,93988.0,0.053152]
[1732144667017,0.02126182,94004.0,93989.0,0.053152]
[1732144667220,0.42403227,94003.0,94002.0,0.053145]
[1732144667525,0.413944,94003.0,94002.0,0.053145]
[1732144668826,0.414944,94003.0,94002.0,0.053145]
[1732144669830,0.00159605,94013.0,94012.0,0.053139]
[1732144670913,0.00259605,94013.0,94012.0,0.053139]
[1732144671520,0.00159605,94013.0,94012.0,0.054139]
[1732144671834,0.3608,94022.0,94013.0,0.053138]
[1732144672019,0.3608,94022.0,94013.0,0.482458]
[1732144673330,0.005,94026.0,94013.0,0.482458]
[1732144674023,0.00177,94014.0,94013.0,0.487458]
[1732144674929,0.00177,94014.0,94013.0,0.520758]
[1732144675227,0.00177,94014.0,94013.0,0.199638]
[1732144675419,0.00177,94014.0,94013.0,0.202638]
[1732144676930,0.00177,94014.0,94013.0,0.521758]
[1732144677123,0.00177,94014.0,94013.0,0.202638]
[1732144677322,0.00177,94014.0,94013.0,0.201638]
[1732144681332,0.00177,94014.0,94013.0,1.701638]
[1732144681632,0.001,94014.0,94013.0,1.668298]
[1732144682129,0.001,94014.0,94013.0,1.558138]
[1732144682533,0.054138,94014.0,94013.0,0.005]
[1732144683927,0.054138,94014.0,94013.0,0.004]
[1732144684122,0.055138,94014.0,94013.0,0.002]
[1732144684626,0.002,94014.0,94003.0,1.5]
[1732144684831,0.3608,94012.0,94003.0,1.5]
[1732144685125,0.053143,94005.0,94003.0,1.5]
[1732144685331,0.053144,94004.0,94003.0,1.5]
[1732144685537,0.3608,94012.0,93999.0,0.10744]
[1732144685834,0.3608,94012.0,93994.0,0.10126665]
[1732144686036,0.3608,93998.0,93983.0,0.10744]
[1732144686225,0.3608,93998.0,93981.0,0.413957]
[1732144686226,0.053149,93994.0,93981.0,0.3608]
[1732144686534,0.053149,93994.0,93984.0,1.5]
[1732144687236,0.053154,93985.0,93984.0,1.5]
[1732144688231,0.053156,93982.0,93981.0,0.3608]
[1732144689534,0.002,93985.0,93981.0,0.3608]
[1732144689739,0.002,93985.0,93981.0,0.46206665]
[1732144689928,0.002,93985.0,93984.0,0.053155]
[1732144690330,0.001,93985.0,93984.0,0.372355]
[1732144690833,0.001,93985.0,93975.0,0.25381269]
[1732144691035,0.053162,93972.0,93970.0,0.053162]
[1732144691233,0.3608,93978.0,93970.0,0.053162]
[1732144691436,0.053162,93971.0,93970.0,0.053162]
[1732144692929,0.053162,93971.0,93967.0,0.0312]
[1732144692930,0.053164,93968.0,93967.0,0.0312]
[1732144694237,0.3608,93978.0,93970.0,0.001]
[1732144694543,0.053162,93971.0,93970.0,0.001]
[1732144694750,0.053162,93971.0,93967.0,0.002]
[1732144694751,0.10126665,93977.0,93967.0,0.002]
[1732144694941,0.414964,93968.0,93967.0,0.002]
[1732144695240,0.414964,93968.0,93966.0,0.00064]
[1732144695241,0.053171,93956.0,93955.0,0.15603401]
[1732144695438,0.053171,93956.0,93955.0,1.65603401]
[1732144697841,0.053171,93956.0,93955.0,1.65803401]
[1732144698043,0.054171,93956.0,93955.0,1.66003401]
[1732144700541,0.054171,93956.0,93955.0,1.76751401]
[1732144701345,0.053171,93956.0,93955.0,1.76551401]
[1732144701546,0.054171,93956.0,93955.0,1.76751401]
[1732144702442,0.054171,93956.0,93955.0,1.66003401]
[1732144706653,0.053167,93965.0,93964.0,0.053166]
[1732144706835,0.05196419,93977.0,93964.0,0.3608]
[1732144707036,0.053163,93970.0,93969.0,0.053163]
[1732144708453,0.053163,93970.0,93969.0,0.243429]
[1732144708957,0.054163,93970.0,93969.0,0.053163]
[1732144709135,0.055163,93970.0,93969.0,0.24344494]
[1732144709445,0.054163,93970.0,93969.0,0.24444494]
[1732144709855,0.00159675,93982.0,93981.0,0.053157]
[1732144710040,0.053151,93991.0,93990.0,0.05315]
[1732144710239,0.3608,93997.0,93981.0,0.413957]
[1732144710240,0.053148,93996.0,93995.0,0.053149]
[1732144712250,0.054148,93996.0,93995.0,0.053149]
[1732144713042,0.055148,93996.0,93995.0,0.053149]
[1732144713644,0.053153,93990.0,93989.0,0.053151]
[1732144713839,0.002,93996.0,93985.0,0.25413754]
[1732144714043,0.053154,93988.0,93987.0,0.053153]
[1732144714245,0.413954,93988.0,93987.0,0.053153]
[1732144715344,0.414954,93988.0,93987.0,0.053153]
[1732144715841,0.415954,93988.0,93987.0,0.053153]
[1732144718938,0.055154,93988.0,93987.0,0.30746594]
[1732144719147,0.055154,93988.0,93987.0,0.053153]
[1732144720058,0.053154,93986.0,93985.0,0.25431294]
[1732144720241,0.053154,93985.0,93984.0,0.25397045]
[1732144720445,0.413954,93985.0,93984.0,0.25397045]
[1732144721243,0.3608,93985.0,93975.0,0.30747294]
[1732144721457,0.053159,93976.0,93975.0,0.30747294]
[1732144721651,0.053159,93976.0,93975.0,0.05316]
[1732144722249,0.053159,93976.0,93975.0,0.11227206]
[1732144722445,0.053159,93976.0,93975.0,0.366585]
[1732144722957,0.053159,93976.0,93975.0,0.11227206]
[1732144723456,0.053159,93976.0,93975.0,0.11327206]
[1732144725550,0.1075882,93976.0,93975.0,0.11327206]
[1732144725748,0.4683882,93976.0,93975.0,0.05416]
[1732144725948,0.1075882,93976.0,93975.0,0.05416]
[1732144726144,0.1075882,93976.0,93975.0,0.30851614]
[1732144726360,0.1075882,93976.0,93975.0,0.05416]
[1732144727562,0.1075882,93976.0,93975.0,0.001]
[1732144727859,0.1075882,93976.0,93975.0,0.002]
[1732144728047,0.1706882,93976.0,93975.0,0.002]
[1732144728446,0.4899282,93976.0,93975.0,0.002]
[1732144728653,0.4899282,93976.0,93955.0,0.00159636]
[1732144728654,0.053166,93964.0,93963.0,0.1908051]
[1732144728860,0.053166,93964.0,93955.0,0.00159636]
[1732144728861,0.413966,93964.0,93955.0,0.00159636]
[1732144729050,0.413971,93956.0,93955.0,0.00159636]
[1732144729660,0.413971,93956.0,93955.0,0.19243333]
[1732144730459,0.413971,93956.0,93955.0,0.00159636]
[1732144731654,0.413971,93956.0,93955.0,0.00259636]
[1732144731956,0.414971,93956.0,93955.0,0.00259636]
[1732144734560,0.46740893,93956.0,93955.0,0.00259636]
[1732144738963,0.46695827,93956.0,93955.0,0.00259636]
[1732144741268,0.46695827,93956.0,93955.0,0.001]
[1732144744062,0.56419827,93956.0,93955.0,0.001]
[1732144749064,0.58546977,93956.0,93955.0,0.001]
[1732144749965,0.58546977,93956.0,93955.0,0.24490507]
[1732144749966,0.05343793,93956.0,93955.0,0.24490507]
[1732144750174,0.005,93969.0,93963.0,0.053167]
[1732144750369,0.053164,93971.0,93970.0,0.053162]
[1732144752372,0.41464349,93974.0,93967.0,0.2542272]
[1732144752677,0.005,93980.0,93964.0,0.031]
[1732144752678,0.053159,93977.0,93976.0,0.053159]
[1732144753772,0.413959,93977.0,93976.0,0.053159]
[1732144754580,0.46206665,93977.0,93970.0,0.001]
[1732144754774,0.15442865,93971.0,93970.0,0.001]
[1732144754973,0.05317,93957.0,93952.0,0.0318]
[1732144755174,0.413972,93953.0,93952.0,0.0318]
[1732144755979,0.413972,93953.0,93952.0,0.22258882]
[1732144756480,0.413972,93953.0,93952.0,0.0318]
[1732144756778,0.414972,93953.0,93952.0,0.0328]
[1732144757181,0.414972,93953.0,93952.0,0.0338]
[1732144760775,0.001,93953.0,93952.0,0.14609119]
[1732144761078,0.054172,93953.0,93952.0,0.14609119]
[1732144762974,0.054172,93953.0,93952.0,0.09291819]
[1732144764084,0.054172,93953.0,93952.0,0.0338]
[1732144764272,0.414972,93953.0,93952.0,0.0338]
[1732144764879,0.054172,93953.0,93952.0,0.0338]
[1732144767478,0.054172,93953.0,93952.0,0.28831055]
[1732144767784,0.054172,93953.0,93930.0,0.4374757]
[1732144767785,0.053173,93952.0,93947.0,0.19088136]
[1732144767993,0.053177,93946.0,93945.0,0.053176]
[1732144768184,0.043177,93946.0,93945.0,0.053176]
[1732144768379,0.043177,93946.0,93945.0,0.11231852]
[1732144769888,0.043177,93946.0,93945.0,0.11331852]
[1732144771290,0.043177,93946.0,93945.0,0.06014252]
[1732144771485,0.043177,93946.0,93945.0,0.001]
[1732144771687,0.362497,93946.0,93945.0,0.001]
[1732144771988,0.043177,93946.0,93945.0,0.001]
[1732144775589,0.043177,93946.0,93945.0,0.10226665]
[1732144775785,0.043177,93946.0,93945.0,0.15544365]
[1732144776188,0.05391974,93948.0,93946.0,0.053176]
[1732144776389,0.053174,93950.0,93947.0,0.053176]
[1732144776592,0.053174,93950.0,93949.0,0.053175]
[1732144779194,0.054174,93950.0,93949.0,0.053175]
[1732144779995,0.053174,93950.0,93949.0,0.053175]
[1732144780197,0.053174,93950.0,93946.0,0.0325]
[1732144780198,0.053176,93947.0,93946.0,0.0325]
[1732144780386,0.053179,93942.0,93941.0,0.0656]
[1732144780689,0.413979,93942.0,93935.0,0.00011805]
[1732144780898,0.15444865,93936.0,93935.0,0.00011805]
[1732144781283,0.053182,93936.0,93935.0,0.00011805]
[1732144781485,0.150662,93936.0,93935.0,0.00011805]
[1732144782283,0.150662,93936.0,93935.0,1.785e-05]
[1732144783491,0.15076451,93936.0,93935.0,1.785e-05]
[1732144784288,0.20497588,93936.0,93935.0,1.785e-05]
[1732144785288,0.20497588,93936.0,93909.0,0.13048]
[1732144785289,0.053197,93910.0,93909.0,0.033]
[1732144785497,0.413997,93910.0,93909.0,0.033]
[1732144786088,0.053197,93910.0,93909.0,0.033]
[1732144786596,0.054197,93910.0,93909.0,0.033]
[1732144787497,0.15546365,93910.0,93909.0,0.033]
[1732144788000,0.15646365,93910.0,93909.0,0.033]
[1732144788203,0.10326665,93910.0,93907.0,0.0311]
[1732144788520,0.053198,93908.0,93907.0,0.0311]
[1732144788996,0.002,93910.0,93907.0,0.0311]
[1732144789198,0.002,93910.0,93909.0,0.053197]
[1732144789604,0.053193,93916.0,93915.0,0.053193]
[1732144789995,0.36168001,93921.0,93909.0,1.5]
[1732144789996,0.05220224,93919.0,93909.0,1.5]
[1732144790188,0.3608,93913.0,93909.0,1.5]
[1732144790388,0.3608,93913.0,93912.0,0.053196]
[1732144791298,0.413995,93913.0,93912.0,0.053196]
[1732144792100,0.053197,93909.0,93908.0,1.50056]
[1732144792304,0.053197,93909.0,93908.0,1.553198]
[1732144792607,0.053197,93909.0,93908.0,0.053198]
[1732144794300,0.054197,93909.0,93908.0,0.054198]
[1732144795900,0.002,93909.0,93908.0,0.054198]
[1732144797507,0.055197,93909.0,93908.0,0.054198]
[1732144799103,0.055197,93909.0,93908.0,0.001]
[1732144799104,0.10970575,93909.0,93908.0,0.001]
[1732144802915,0.10870575,93909.0,93908.0,0.001]
[1732144803108,0.10970575,93909.0,93908.0,0.001]
[1732144804212,0.053201,93902.0,93901.0,0.053202]
[1732144804400,0.414001,93902.0,93901.0,0.053202]
[1732144805301,0.053202,93901.0,93894.0,0.0309]
[1732144806613,0.054202,93901.0,93894.0,0.0309]
[1732144808006,0.055202,93901.0,93900.0,0.101]
[1732144809310,0.055202,93901.0,93900.0,0.154202]
[1732144809510,0.002,93901.0,93900.0,0.154202]
[1732144811407,0.05450875,93909.0,93900.0,0.154202]
[1732144811408,0.05450875,93909.0,93908.0,0.053198]
[1732144811604,0.09516,93920.0,93908.0,0.10126665]
[1732144811804,0.09516,93920.0,93909.0,0.053197]
[1732144811805,0.053195,93913.0,93909.0,0.053197]
[1732144812006,0.053196,93912.0,93909.0,0.084097]
[1732144812814,0.05312802,93911.0,93910.0,0.053197]
[1732144813015,0.005,93922.0,93921.0,0.05319]
[1732144813311,0.413989,93924.0,93923.0,0.053189]
[1732144813709,0.413989,93924.0,93915.0,0.41994543]
[1732144814015,0.413993,93916.0,93915.0,0.053194]
[1732144815315,0.414993,93916.0,93915.0,0.053194]
[1732144817107,0.413993,93916.0,93915.0,0.053194]
[1732144817309,0.414993,93916.0,93915.0,0.053194]
[1732144817718,0.414993,93916.0,93915.0,0.054194]
[1732144818227,0.414993,93916.0,93915.0,0.11336719]
[1732144819317,0.414993,93916.0,93915.0,0.11236719]
[1732144820526,0.413993,93916.0,93915.0,0.11236719]
[1732144820714,0.414993,93916.0,93915.0,0.11236719]
[1732144821312,0.3618,93916.0,93910.0,0.083396]
[1732144821519,0.053196,93911.0,93910.0,0.083396]
[1732144821727,0.053196,93911.0,93910.0,0.14255566]
[1732144822919,0.053196,93911.0,93910.0,0.77778699]
[1732144823120,0.053196,93911.0,93910.0,0.14255566]
[1732144823522,0.053196,93911.0,93910.0,0.09035966]
[1732144824525,0.005,93922.0,93915.0,0.053194]
[1732144824729,0.00088001,93924.0,93923.0,0.053189]
[1732144824932,0.053184,93932.0,93928.0,0.053187]
[1732144824933,0.3608,93929.0,93928.0,0.053187]
[1732144825239,0.413986,93929.0,93928.0,0.11234981]
[1732144826422,0.413986,93929.0,93928.0,0.053187]
[1732144826622,0.053191,93923.0,93922.0,0.053189]
[1732144827130,0.053191,93923.0,93922.0,0.05914557]
[1732144828028,0.053191,93923.0,93922.0,0.11333557]
[1732144828826,0.054191,93923.0,93922.0,0.11233557]
[1732144829026,0.05530715,93923.0,93922.0,0.11233557]
[1732144831535,0.05442331,93923.0,93922.0,0.11233557]
[1732144832927,0.05542331,93923.0,93922.0,0.11233557]
[1732144834335,0.00223231,93923.0,93922.0,0.11233557]
[1732144834536,0.00123231,93923.0,93922.0,0.21360222]
[1732144834738,0.00123231,93923.0,93922.0,0.18012332]
[1732144835623,0.00123231,93923.0,93922.0,0.12097775]
[1732144835830,0.00123231,93923.0,93922.0,0.12197775]
[1732144836537,0.00123231,93923.0,93922.0,0.18208451]
[1732144836745,0.00123231,93923.0,93922.0,0.21577612]
[1732144837232,0.00123231,93923.0,93922.0,0.53417955]
[1732144837635,0.00123231,93923.0,93922.0,0.53317955]
[1732144837933,0.3608,93953.0,93931.0,0.053185]
[1732144838241,0.00010251,93936.0,93935.0,0.15466236]
[1732144838433,0.00010251,93936.0,93935.0,1.74974236]
[1732144839235,0.00110251,93936.0,93935.0,1.74974236]
[1732144839443,0.00110251,93936.0,93935.0,2.12143311]
[1732144840032,0.00110251,93936.0,93935.0,2.49390035]
[1732144840342,0.00110251,93936.0,93935.0,2.12182204]
[1732144841439,0.41508451,93936.0,93935.0,0.37207968]
[1732144841942,0.41508451,93936.0,93935.0,0.05910676]
[1732144842131,0.41508451,93936.0,93934.0,0.053183]
[1732144842132,0.053183,93935.0,93934.0,0.30776894]
[1732144842331,0.36190251,93936.0,93933.0,0.09508]
[1732144842332,0.00202251,93936.0,93933.0,0.09508]
[1732144842528,0.00110251,93936.0,93933.0,0.09508]
[1732144842934,0.053183,93934.0,93933.0,0.09508]
[1732144843333,0.053183,93935.0,93933.0,0.05909933]
[1732144843534,0.00110251,93936.0,93933.0,0.25457722]
[1732144843734,0.00110251,93936.0,93915.0,0.09508]
[1732144843735,0.053184,93933.0,93932.0,0.25458203]
[1732144844040,0.053185,93930.0,93923.0,0.31821772]
[1732144844341,0.053194,93915.0,93914.0,0.053194]
[1732144844638,0.413994,93915.0,93914.0,0.11231501]
[1732144845038,0.053194,93915.0,93914.0,0.11231501]
[1732144845241,0.413994,93915.0,93914.0,0.11231501]
[1732144845943,0.053194,93915.0,93914.0,0.11231501]
[1732144847141,0.10644366,93915.0,93914.0,0.43060543]
[1732144847331,0.10644366,93915.0,93914.0,0.42241815]
[1732144847535,0.10644366,93915.0,93914.0,0.43060848]
[1732144847747,0.10744366,93915.0,93914.0,0.43060848]
[1732144848438,0.10644366,93915.0,93914.0,0.43160848]
[1732144848637,0.10644366,93915.0,93914.0,0.42369326]
[1732144848946,0.10644366,93915.0,93914.0,0.11331501]
[1732144849149,0.10644366,93915.0,93914.0,0.7420488]
[1732144849341,0.10644366,93915.0,93914.0,0.74204749]
[1732144849537,0.10644366,93915.0,93914.0,0.42375484]
[1732144849744,0.10644366,93915.0,93914.0,0.74206752]
[1732144849942,0.10644366,93915.0,93914.0,0.42476647]
[1732144850143,0.10644366,93915.0,93914.0,0.42376647]
[1732144850542,0.10644366,93915.0,93914.0,0.42276647]
[1732144851048,0.10644366,93915.0,93914.0,0.42376647]
[1732144852451,0.10644366,93915.0,93914.0,0.42476647]
[1732144852954,0.10644366,93915.0,93914.0,0.42376647]
[1732144853257,0.10644366,93915.0,93914.0,0.42476647]
[1732144854244,0.10644366,93915.0,93914.0,0.11431501]
[1732144854454,0.46724366,93915.0,93914.0,0.42487975]
[1732144854852,0.46724366,93915.0,93914.0,0.74330346]
[1732144855452,0.46724366,93915.0,93914.0,0.43273872]
[1732144855651,0.46724366,93915.0,93914.0,0.42504297]
[1732144855852,0.46724366,93915.0,93914.0,0.43273279]
[1732144856040,0.46724366,93915.0,93914.0,0.74344633]
[1732144856244,0.10644366,93915.0,93914.0,0.43273279]
[1732144856445,0.10644366,93915.0,93914.0,0.42500354]
[1732144856649,0.12772044,93915.0,93914.0,0.42500354]
[1732144858051,0.10644366,93915.0,93914.0,0.42500354]
[1732144858953,0.05324966,93915.0,93914.0,0.11431501]
[1732144859250,0.053192,93919.0,93918.0,0.053192]
[1732144859442,0.053192,93919.0,93918.0,0.11231301]
[1732144860552,0.0318,93923.0,93918.0,0.47267874]
[1732144860553,0.05232487,93923.0,93918.0,0.47267874]
[1732144860750,0.3608,93924.0,93922.0,0.31836057]
[1732144860952,0.3608,93924.0,93923.0,0.14351001]
[1732144861144,0.005,93932.0,93923.0,0.48862729]
[1732144861343,0.053184,93934.0,93933.0,0.053184]
[1732144861853,0.36327751,93938.0,93935.0,0.053183]
[1732144862046,0.00247751,93938.0,93935.0,0.053183]
[1732144862245,0.05374667,93936.0,93935.0,0.053183]
[1732144862461,0.00010251,93936.0,93935.0,0.11230401]
[1732144862755,0.00010251,93936.0,93935.0,0.42322951]
[1732144863260,0.00010251,93936.0,93935.0,1.92322951]
[1732144863955,0.00110251,93936.0,93935.0,1.92322951]
[1732144864154,0.00110251,93936.0,93935.0,1.61230401]
[1732144865652,0.00110251,93936.0,93935.0,2.2839708]
[1732144866044,0.00110251,93936.0,93935.0,2.60208296]
[1732144866242,0.05428451,93936.0,93935.0,0.05912101]
[1732144866442,0.053183,93935.0,93921.0,0.31811216]
[1732144866653,0.3608,93925.0,93916.0,0.31811216]
[1732144866850,0.3608,93925.0,93911.0,0.0311]
[1732144866851,0.053196,93912.0,93911.0,0.0311]
[1732144867154,0.053196,93912.0,93911.0,0.09023388]
[1732144867455,0.053194,93915.0,93914.0,0.053194]
[1732144867647,0.053194,93915.0,93914.0,0.74315423]
[1732144867848,0.053194,93915.0,93914.0,0.11232788]
[1732144868053,0.053194,93915.0,93914.0,0.43043791]
[1732144868257,0.053194,93915.0,93914.0,0.11232788]
[1732144868758,0.053194,93915.0,93914.0,0.05913388]
[1732144870050,0.053194,93915.0,93914.0,0.06013388]
[1732144870753,0.053194,93915.0,93914.0,0.05913388]
[1732144871155,0.053194,93915.0,93914.0,0.37179166]
[1732144871347,0.053194,93915.0,93914.0,0.37279166]
[1732144871749,0.053194,93915.0,93914.0,0.06013388]
[1732144871950,0.053194,93915.0,93914.0,0.37278401]
[1732144872157,0.053194,93915.0,93914.0,0.06013388]
[1732144872456,0.053194,93915.0,93914.0,0.37946957]
[1732144873056,0.413994,93915.0,93914.0,0.06113388]
[1732144873258,0.413994,93915.0,93914.0,0.06013388]
[1732144873448,0.413994,93915.0,93914.0,0.68446768]
[1732144873449,0.053194,93915.0,93914.0,0.68446768]
[1732144873649,0.413994,93915.0,93914.0,0.06013388]
[1732144874154,0.413994,93915.0,93914.0,0.05913388]
[1732144874554,0.053194,93915.0,93914.0,0.06013388]
[1732144874861,0.413994,93915.0,93914.0,0.06013388]
[1732144875660,0.053194,93915.0,93914.0,0.36562753]
[1732144875955,0.053194,93915.0,93914.0,0.36561369]
[1732144876157,0.053194,93915.0,93914.0,0.6838458]
[1732144876360,0.51547336,93915.0,93914.0,0.001]
[1732144877259,0.413994,93915.0,93914.0,0.002]
[1732144877655,0.413994,93915.0,93914.0,0.19304392]
[1732144877866,0.413994,93915.0,93914.0,0.002]
[1732144878248,0.413994,93915.0,93914.0,0.001]
[1732144878850,0.43527406,93915.0,93914.0,0.001]
[1732144879155,0.0532,93904.0,93903.0,0.0532]
[1732144879461,0.0532,93904.0,93903.0,0.11233708]
[1732144880055,0.005,93912.0,93903.0,0.16061644]
[1732144880249,0.005,93912.0,93904.0,0.05913708]
[1732144880556,0.053198,93908.0,93907.0,0.053198]
[1732144880763,0.053198,93908.0,93907.0,0.11233508]
[1732144881652,0.053198,93908.0,93907.0,0.05913708]
[1732144881852,0.3608,93908.0,93903.0,0.002]
[1732144882059,0.0532,93904.0,93903.0,0.002]
[1732144882362,0.0532,93904.0,93903.0,0.06113061]
[1732144883058,0.0532,93904.0,93903.0,0.06013061]
[1732144883461,0.05330755,93904.0,93903.0,0.06013061]